lending/lending_fUSD_20241229
["ID","MTS","AMOUNT","RATE_DAILY","PERIOD"]
[347098057,1735495853032,-640.62,0.00012251,2]
[347098058,1735495853042,-387.59,0.00012251,2]
[347098059,1735495853052,-500.0,0.00012251,2]
[347098060,1735495853060,-500.0,0.00012251,2]
[347098061,1735495853070,-500.0,0.00012251,2]
[347098062,1735495853079,-500.0,0.00012251,2]
[347098063,1735495853087,-334.81,0.00012251,2]
[347098064,1735495853096,-368.1,0.00012251,2]
[347098065,1735495853106,-570.95,0.00012251,2]
[347098066,1735495853115,-475.85,0.00012251,2]
[347098067,1735495853124,-500.0,0.00012251,2]
[347098068,1735495853133,-357.53,0.00012251,2]
[347098069,1735495853142,-352.21,0.00012251,2]
[347098070,1735495853151,-164.74,0.00012251,2]
[347098071,1735495853160,-500.0,0.00012251,2]
[347098072,1735495853170,-500.0,0.00012251,2]
[347098073,1735495853179,-500.0,0.00012251,2]
[347098074,1735495853188,-500.0,0.00012251,2]
[347098075,1735495853197,-500.0,0.00012251,2]
[347098076,1735495853206,-457.19,0.00012251,2]
[347098077,1735495853215,-500.0,0.00012251,2]
[347098078,1735495853224,-500.0,0.00012251,2]
[347098079,1735495853233,-500.0,0.00012251,2]
[347098080,1735495853242,-500.0,0.00012251,2]
[347098081,1735495853251,-500.0,0.00012251,2]
[347098082,1735495853260,-473.76,0.00012251,2]
[347098083,1735495853269,-500.0,0.00012251,2]
[347098084,1735495853278,-500.0,0.00012251,2]
[347098085,1735495853287,-500.0,0.00012251,2]
[347098086,1735495853296,-276.82,0.00012251,2]
[347098087,1735495853305,-500.0,0.00012251,2]
[347098088,1735495853314,-615.96609503,0.00012251,2]
[347098089,1735495853323,-500.0,0.00012251,2]
[347098090,1735495853333,-577.44,0.00012251,2]
[347098091,1735495853342,-476.51,0.00012251,2]
[347098092,1735495853352,-421.3,0.00012251,2]
[347098093,1735495853361,-500.0,0.00012251,2]
[347098094,1735495853371,-436.49,0.00012251,2]
[347098095,1735495853380,-500.0,0.00012251,2]
[347098096,1735495853389,-436.34,0.00012251,2]
[347098097,1735495853399,-500.0,0.00012251,2]
[347098098,1735495853408,-500.0,0.00012251,2]
[347098099,1735495853418,-357.11,0.00012251,2]
[347098100,1735495853427,-162.91,0.00012251,2]
[347098101,1735495853437,-500.0,0.00012251,2]
[347098102,1735495853446,-500.0,0.00012251,2]
[347098103,1735495853455,-240.81,0.00012251,2]
[347098104,1735495853465,-500.0,0.00012251,2]
[347098105,1735495853474,-500.0,0.00012251,2]
[347098106,1735495853483,-500.0,0.00012251,2]
[347098107,1735495853492,-500.0,0.00012251,2]
[347098108,1735495853501,-500.0,0.00012251,2]
[347098109,1735495853511,-500.0,0.00012251,2]
[347098110,1735495853520,-282.28,0.00012251,2]
[347098111,1735495853529,-611.74,0.00012251,2]
[347098112,1735495853538,-161.33,0.00012251,2]
[347098113,1735495853548,-424.29,0.00012251,2]
[347098114,1735495853557,-237.07,0.00012251,2]
[347098115,1735495853567,-500.0,0.00012251,2]
[347098116,1735495853575,-573.83,0.00012251,2]
[347098117,1735495853585,-541.07,0.00012251,2]
[347098118,1735495853594,-550.58,0.00012251,2]
[347098119,1735495853603,-919.59586871,0.000123,3]
[347098120,1735495922271,302.91,0.00024836,120]
[347098121,1735495997212,359.58,9.75e-05,2]
[347098123,1735496065567,162.73,0.00010137,2]
[347098124,1735496730874,2449.64522651,0.0001,2]
[347098126,1735496835806,205.0,9.8e-05,2]
[347098127,1735496873685,111.42968314,0.0001,2]
[347098128,1735496873706,512.63295573,0.0001,2]
[347098130,1735496902779,341.6,9.464e-05,2]
[347098132,1735496912524,2612.18564681,0.0001,2]
[347098145,1735497032007,-329.3342,0.00011333,2]
[347098147,1735497032018,-1000.0,0.00011426,2]
[347098149,1735497032028,-555.6118192,0.00011428,2]
[347098151,1735497032040,-197.06280231,0.00011429,2]
[347098152,1735497032050,-915.45462686,0.00011529,2]
[347098153,1735497032059,-500.0,0.00011531,2]
[347098154,1735497032069,-416.8,0.00011531,2]
[347098155,1735497032078,-500.0,0.00011531,2]
[347098156,1735497032088,-500.0,0.00011532,2]
[347098157,1735497032097,-500.0,0.00011532,2]
[347098158,1735497032107,-500.0,0.00011532,2]
[347098159,1735497032117,-500.0,0.00011532,2]
[347098160,1735497032126,-826.58,0.00011532,2]
[347098161,1735497032135,-500.0,0.00011532,2]
[347098162,1735497032144,-512.7,0.00011532,2]
[347098163,1735497032153,-500.0,0.00011532,2]
[347098164,1735497032163,-500.0,0.00011532,2]
[347098165,1735497032172,-500.0,0.00011532,2]
[347098166,1735497032181,-500.0,0.00011532,2]
[347098167,1735497032190,-500.0,0.00011532,2]
[347098168,1735497032200,-500.0,0.00011532,2]
[347098169,1735497032209,-500.0,0.00011532,2]
[347098170,1735497032218,-500.0,0.00011532,2]
[347098171,1735497032228,-500.0,0.00011532,2]
[347098172,1735497032237,-500.0,0.00011532,2]
[347098173,1735497032246,-500.0,0.00011532,2]
[347098174,1735497032256,-500.0,0.00011532,2]
[347098175,1735497032267,-500.0,0.00011532,2]
[347098176,1735497032277,-500.0,0.00011532,2]
[347098177,1735497032286,-500.0,0.00011532,2]
[347098178,1735497032295,-1355.83,0.00011532,2]
[347098179,1735497032306,-635.86,0.00011532,2]
[347098180,1735497032315,-500.0,0.00011532,2]
[347098181,1735497032325,-500.0,0.00011532,2]
[347098182,1735497032334,-992.4,0.00011532,2]
[347098183,1735497032345,-2255.77,0.00011532,2]
[347098184,1735497032355,-232.48,0.00011547,2]
[347098185,1735497032365,-341.6,0.00011728,2]
[347098186,1735497032374,-263.76,0.00011805,2]
[347098187,1735497032383,-302.64,0.00011805,2]
[347098188,1735497032393,-500.0,0.00011805,2]
[347098189,1735497032402,-500.0,0.00011805,2]
[347098190,1735497032411,-500.0,0.00011805,2]
[347098192,1735497032421,-500.0,0.00011805,2]
[347098194,1735497032430,-518.41,0.00011805,2]
[347098196,1735497032439,-519.09,0.00011805,2]
[347098198,1735497032449,-500.0,0.00011805,2]
[347098200,1735497032458,-500.0,0.00011806,2]
[347098202,1735497032468,-500.0,0.00011806,2]
[347098204,1735497032477,-500.0,0.00011806,2]
[347098206,1735497032487,-500.0,0.00011806,2]
[347098208,1735497032496,-512.7,0.00011806,2]
[347098210,1735497032505,-500.0,0.00011806,2]
[347098213,1735497032518,-500.0,0.00011806,2]
[347098215,1735497032527,-500.0,0.00011806,2]
[347098217,1735497032537,-500.0,0.00011806,2]
[347098219,1735497032546,-500.0,0.00011806,2]
[347098221,1735497032556,-500.0,0.00011806,2]
[347098223,1735497032565,-500.0,0.00011806,2]
[347098225,1735497032575,-500.0,0.00011806,2]
[347098227,1735497032584,-500.0,0.00011806,2]
[347098229,1735497032593,-500.0,0.00011806,2]
[347098231,1735497032602,-178.33,0.00011806,2]
[347098233,1735497032612,-500.0,0.00011806,2]
[347098235,1735497032622,-500.0,0.00011806,2]
[347098237,1735497032632,-500.0,0.00011806,2]
[347098239,1735497032640,-500.0,0.00011806,2]
[347098241,1735497032649,-1355.83,0.00011806,2]
[347098243,1735497032658,-635.86,0.00011806,2]
[347098245,1735497032667,-500.0,0.00011806,2]
[347098247,1735497032676,-500.0,0.00011806,2]
[347098248,1735497032685,-127.35690401,0.00011806,2]
[347098252,1735497032706,-865.04309599,0.00011806,2]
[347098254,1735497032715,-609.51384464,0.00011806,2]
[347098256,1735497032727,-946.363912,0.00011806,2]
[347098258,1735497032738,-699.89224336,0.00011806,2]
[347098260,1735497032747,-250.0,0.00011822,2]
[347098262,1735497032757,-426.59380236,0.00011893,2]
[347098264,1735497032767,-497.25,0.00011977,2]
[347098266,1735497032777,-450.0,0.00012,2]
[347098267,1735497032786,-826.58,0.00012079,2]
[347098268,1735497032795,-279.86,0.00012079,2]
[347098269,1735497032805,-500.0,0.00012079,2]
[347098270,1735497032814,-500.0,0.00012079,2]
[347098271,1735497032824,-195.55,0.00012079,2]
[347098272,1735497032833,-65.53432676,0.00012079,2]
[347098273,1735497032849,-452.87567324,0.00012079,2]
[347098274,1735497032859,-519.09,0.00012079,2]
[347098275,1735497032868,-500.0,0.00012079,2]
[347098276,1735497032878,-500.0,0.0001208,2]
[347098277,1735497032888,-224.08,0.0001208,2]
[347098278,1735497032898,-500.0,0.0001208,2]
[347098279,1735497032907,-500.0,0.0001208,2]
[347098280,1735497032917,-512.7,0.0001208,2]
[347098281,1735497032926,-254.74248832,0.0001208,2]
[347098282,1735497032936,-500.0,0.0001208,2]
[347098283,1735497032946,-550.22,0.0001208,2]
[347098284,1735497032955,-296.56366848,0.0001208,2]
[347098285,1735497032964,-390.62,0.0001208,2]
[347098286,1735497032974,-39.52449705,0.0001208,2]
[347098287,1735497033157,-460.47550295,0.0001208,2]
[347098288,1735497033167,-500.0,0.0001208,2]
[347098289,1735497033176,-500.0,0.0001208,2]
[347098290,1735497033186,-500.0,0.0001208,2]
[347098291,1735497033195,-500.0,0.0001208,2]
[347098292,1735497033204,-500.0,0.0001208,2]
[347098293,1735497033213,-500.0,0.0001208,2]
[347098294,1735497033223,-500.0,0.0001208,2]
[347098295,1735497033232,-500.0,0.0001208,2]
[347098296,1735497033241,-1355.83,0.0001208,2]
[347098297,1735497033251,-635.86,0.0001208,2]
[347098298,1735497033260,-500.0,0.0001208,2]
[347098299,1735497033273,-196.65932391,0.0001208,2]
[347098304,1735497038018,-50000.0,0.00011529,2]
[347098305,1735497038028,-303.34067609,0.0001208,2]
[347098306,1735497038038,-992.4,0.0001208,2]
[347098307,1735497038048,-2255.77,0.0001208,2]
[347098308,1735497038057,-2668.1096,0.0001213,2]
[347098309,1735497038066,-94856.09942475,0.0001218,2]
[347098310,1735497038075,-220.3787,0.00012299,2]
[347098311,1735497038084,-500.0,0.00012353,2]
[347098312,1735497038093,-500.0,0.00012353,2]
[347098313,1735497038102,-518.41,0.00012353,2]
[347098314,1735497038111,-519.09,0.00012353,2]
[347098315,1735497038120,-500.0,0.00012353,2]
[347098316,1735497038129,-175.9,0.00012354,2]
[347098317,1735497038139,-500.0,0.00012354,2]
[347098318,1735497038148,-500.0,0.00012354,2]
[347098319,1735497038156,-512.7,0.00012354,2]
[347098320,1735497038168,-500.0,0.00012354,2]
[347098321,1735497038177,-500.0,0.00012354,2]
[347098322,1735497038187,-500.0,0.00012354,2]
[347098323,1735497038197,-500.0,0.00012354,2]
[347098324,1735497038206,-546.02,0.00012354,2]
[347098325,1735497038215,-500.0,0.00012354,2]
[347098326,1735497038224,-500.0,0.00012354,2]
[347098327,1735497038233,-500.0,0.00012354,2]
[347098328,1735497038242,-500.0,0.00012354,2]
[347098329,1735497038250,-500.0,0.00012354,2]
[347098330,1735497038260,-1355.83,0.00012354,2]
[347098331,1735497038273,-635.86,0.00012354,2]
[347098332,1735497038282,-435.97,0.00012354,2]
[347098333,1735497038292,-500.0,0.00012354,2]
[347098334,1735497038302,-992.4,0.00012354,2]
[347098336,1735497038312,-2255.77,0.00012354,2]
[347098338,1735497038321,-500.0,0.00012398,2]
[347098339,1735497038330,-500.0,0.00012398,2]
[347098341,1735497038340,-550.83,0.00012398,2]
[347098342,1735497038350,-775.91,0.00012398,2]
[347098343,1735497038359,-500.0,0.00012398,2]
[347098344,1735497038369,-500.0,0.00012398,2]
[347098345,1735497038378,-500.0,0.00012398,2]
[347098346,1735497038387,-679.19,0.00012398,2]
[347098348,1735497038396,-500.0,0.00012398,2]
[347098350,1735497038406,-500.0,0.00012398,2]
[347098352,1735497038415,-512.13,0.00012398,2]
[347098354,1735497038424,-500.0,0.00012398,2]
[347098356,1735497038433,-500.0,0.00012398,2]
[347098358,1735497038442,-500.0,0.00012398,2]
[347098360,1735497038452,-500.0,0.00012398,2]
[347098362,1735497038461,-500.0,0.00012398,2]
[347098364,1735497038470,-500.0,0.00012398,2]
[347098366,1735497038479,-3537.28,0.00012398,2]
[347098368,1735497038488,-500.0,0.00012398,2]
[347098370,1735497038497,-294.59,0.00012398,2]
[347098372,1735497038508,-500.0,0.00012398,2]
[347098374,1735497038518,-500.0,0.00012624,2]
[347098376,1735497038527,-500.0,0.00012624,2]
[347098378,1735497038536,-203.64790921,0.00012624,2]
[347098380,1735497038545,-500.0,0.00012624,2]
[347098382,1735497038555,-500.0,0.00012625,2]
[347098384,1735497038564,-500.0,0.00012625,2]
[347098386,1735497038573,-500.0,0.00012625,2]
[347098388,1735497038582,-500.0,0.00012625,2]
[347098390,1735497038591,-500.0,0.00012625,2]
[347098392,1735497038600,-500.0,0.00012625,2]
[347098394,1735497038610,-500.0,0.00012625,2]
[347098396,1735497038619,-500.0,0.00012625,2]
[347098398,1735497038628,-500.0,0.00012625,2]
[347098400,1735497038637,-500.0,0.00012625,2]
[347098402,1735497038646,-500.0,0.00012625,2]
[347098404,1735497038656,-499.98,0.00012625,2]
[347098406,1735497038665,-500.0,0.00012625,2]
[347098408,1735497038674,-500.0,0.00012625,2]
[347098410,1735497038683,-500.0,0.00012625,2]
[347098412,1735497038693,-500.0,0.00012625,2]
[347098414,1735497038702,-501.18949049,0.00012625,2]
[347098416,1735497038711,-500.0,0.00012625,2]
[347098417,1735497038720,-500.0,0.00012625,2]
[347098419,1735497038730,-500.0,0.00012626,2]
[347098421,1735497038739,-500.0,0.00012626,2]
[347098424,1735497038750,-500.0,0.00012626,2]
[347098425,1735497038759,-831.99,0.00012626,2]
[347098427,1735497038768,-153.095503,0.00012626,2]
[347098429,1735497038777,-151.299562,0.00012626,2]
[347098431,1735497038788,-761.11,0.00012626,2]
[347098433,1735497038797,-500.0,0.00012626,2]
[347098435,1735497038809,-504.55951917,0.00012627,2]
[347098436,1735497038819,-500.0,0.00012627,2]
[347098437,1735497038828,-500.0,0.00012627,2]
[347098438,1735497038838,-598.0,0.00012627,2]
[347098439,1735497038847,-501.83637131,0.00012627,2]
[347098440,1735497038856,-500.0,0.00012627,2]
[347098441,1735497038865,-505.81573014,0.00012627,2]
[347098442,1735497038874,-500.0,0.00012627,2]
[347098443,1735497038883,-500.0,0.00012627,2]
[347098444,1735497038892,-524.23,0.00012627,2]
[347098446,1735497038901,-500.0,0.00012627,2]
[347098447,1735497038910,-500.0,0.00012627,2]
[347098449,1735497038919,-500.0,0.00012627,2]
[347098451,1735497038928,-500.0,0.00012627,2]
[347098453,1735497038937,-500.0,0.00012627,2]
[347098455,1735497038946,-376.02684816,0.00012627,2]
[347098457,1735497038956,-500.0,0.00012627,2]
[347098459,1735497038965,-500.0,0.00012627,2]
[347098461,1735497038974,-500.0,0.00012627,2]
[347098463,1735497038983,-276.28,0.00012627,2]
[347098465,1735497038993,-167.93,0.00012627,2]
[347098468,1735497039002,-500.0,0.00012627,2]
[347098470,1735497039012,-500.0,0.00012627,2]
[347098471,1735497039021,-500.0,0.00012627,2]
[347098474,1735497039030,-268.86,0.00012627,2]
[347098476,1735497039040,-500.0,0.00012627,2]
[347098478,1735497039050,-500.0,0.00012627,2]
[347098480,1735497039059,-439.49,0.00012627,2]
[347098482,1735497039068,-171.48,0.00012627,2]
[347098484,1735497039077,-440.7,0.00012627,2]
[347098485,1735497039087,-620.81,0.00012627,2]
[347098488,1735497039096,-500.0,0.00012627,2]
[347098489,1735497039106,-500.0,0.00012627,2]
[347098491,1735497039115,-500.0,0.00012627,2]
[347098493,1735497039124,-298.35,0.00012627,2]
[347098495,1735497039133,-188.57,0.00012627,2]
[347098497,1735497039142,-500.0,0.00012627,2]
[347098499,1735497039151,-500.0,0.00012627,2]
[347098501,1735497039160,-513.18,0.00012627,2]
[347098503,1735497039169,-500.0,0.00012627,2]
[347098505,1735497039179,-500.0,0.00012627,2]
[347098507,1735497039189,-500.0,0.00012627,2]
[347098509,1735497039201,-500.0,0.00012627,2]
[347098512,1735497039211,-500.0,0.00012627,2]
[347098513,1735497039221,-500.0,0.00012627,2]
[347098515,1735497039230,-552.05,0.00012627,2]
[347098518,1735497039240,-568.99,0.00012627,2]
[347098520,1735497039249,-566.67,0.00012627,2]
[347098522,1735497039259,-500.0,0.00012627,2]
[347098524,1735497039271,-454.04,0.00012627,2]
[347098526,1735497039281,-500.0,0.00012627,2]
[347098528,1735497039290,-500.0,0.00012627,2]
[347098530,1735497039299,-280.87,0.00012627,2]
[347098532,1735497039308,-500.0,0.00012627,2]
[347098534,1735497039318,-396.57,0.00012627,2]
[347098536,1735497039327,-500.31158674,0.00012627,2]
[347098538,1735497039336,-500.0,0.00012627,2]
[347098540,1735497039347,-197.69,0.00012627,2]
[347098542,1735497039356,-500.0,0.00012627,2]
[347098544,1735497039365,-500.0,0.00012627,2]
[347098546,1735497039376,-183.83,0.00012627,2]
[347098548,1735497039385,-518.41,0.00012627,2]
[347098550,1735497039395,-314.16,0.00012627,2]
[347098552,1735497039404,-519.09,0.00012627,2]
[347098554,1735497039413,-500.0,0.00012628,2]
[347098556,1735497039422,-467.6,0.00012628,2]
[347098558,1735497039431,-512.7,0.00012628,2]
[347098560,1735497039440,-500.0,0.00012628,2]
[347098562,1735497039450,-500.0,0.00012628,2]
[347098564,1735497039458,-500.0,0.00012628,2]
[347098566,1735497039467,-239.41143496,0.00012628,2]
[347098568,1735497039477,-613.52,0.00012628,2]
[347098570,1735497039486,-500.0,0.00012628,2]
[347098572,1735497039495,-500.0,0.00012628,2]
[347098574,1735497039504,-500.0,0.00012628,2]
[347098576,1735497039514,-500.0,0.00012628,2]
[347098578,1735497039523,-580.03,0.00012628,2]
[347098580,1735497039532,-500.0,0.00012628,2]
[347098582,1735497039542,-500.0,0.00012628,2]
[347098584,1735497039551,-500.0,0.00012628,2]
[347098586,1735497039560,-500.0,0.00012628,2]
[347098588,1735497039569,-500.0,0.00012628,2]
[347098590,1735497039578,-344.73574205,0.00012628,2]
[347098591,1735497039587,-500.0,0.00012628,2]
[347098593,1735497039597,-500.0,0.00012628,2]
[347098595,1735497039608,-306.91,0.00012628,2]
[347098597,1735497039617,-275.34,0.00012628,2]
[347098598,1735497039627,-500.0,0.00012628,2]
[347098599,1735497039636,-500.0,0.00012628,2]
[347098600,1735497039645,-500.0,0.00012628,2]
[347098601,1735497039655,-500.0,0.00012628,2]
[347098602,1735497039664,-500.0,0.00012628,2]
[347098603,1735497039674,-500.0,0.00012628,2]
[347098604,1735497039683,-500.0,0.00012628,2]
[347098605,1735497039693,-1355.83,0.00012628,2]
[347098606,1735497039703,-415.81,0.00012628,2]
[347098607,1735497039713,-635.86,0.00012628,2]
[347098608,1735497039722,-500.0,0.00012628,2]
[347098610,1735497039731,-150.82,0.00012628,2]
[347098611,1735497039741,-500.0,0.00012628,2]
[347098612,1735497039750,-571.77,0.00012628,2]
[347098613,1735497039760,-547.87,0.00012628,2]
[347098614,1735497039770,-638.91,0.00012628,2]
[347098615,1735497039779,-992.4,0.00012628,2]
[347098616,1735497039789,-2255.77,0.00012628,2]
[347098617,1735497039799,-500.0,0.00012672,2]
[347098618,1735497039808,-775.91,0.00012672,2]
[347098620,1735497039817,-500.0,0.00012672,2]
[347098622,1735497039826,-500.0,0.00012672,2]
[347098623,1735497039835,-500.0,0.00012672,2]
[347098625,1735497039845,-679.19,0.00012672,2]
[347098626,1735497039854,-500.0,0.00012672,2]
[347098627,1735497039863,-500.0,0.00012672,2]
[347098628,1735497039875,-181.05,0.00012672,2]
[347098629,1735497039886,-500.0,0.00012672,2]
[347098630,1735497039895,-500.0,0.00012672,2]
[347098631,1735497039904,-500.0,0.00012672,2]
[347098632,1735497039913,-500.0,0.00012672,2]
[347098633,1735497039923,-3537.28,0.00012672,2]
[347098634,1735497039933,-500.0,0.00012672,2]
[347098635,1735497039942,-500.0,0.00012672,2]
[347098636,1735497039951,-1000.0,0.00012854,2]
[347098637,1735497039961,-500.0,0.00012898,2]
[347098638,1735497039971,-343.11,0.00012898,2]
[347098639,1735497039980,-275.96,0.00012899,2]
[347098640,1735497039990,-500.0,0.00012899,2]
[347098641,1735497040004,-598.12,0.00012899,2]
[347098642,1735497040014,-500.0,0.00012899,2]
[347098643,1735497040023,-415.33,0.00012899,2]
[347098644,1735497040033,-500.0,0.000129,2]
[347098645,1735497040042,-500.0,0.000129,2]
[347098646,1735497040052,-500.0,0.000129,2]
[347098647,1735497040062,-831.99,0.000129,2]
[347098648,1735497040071,-761.11,0.000129,2]
[347098649,1735497040081,-256.92,0.00012901,2]
[347098650,1735497040090,-225.69,0.00012901,2]
[347098651,1735497040100,-219.7938523,0.00012901,2]
[347098652,1735497040109,-293.31,0.00012901,2]
[347098653,1735497040118,-500.0,0.00012901,2]
[347098654,1735497040127,-500.0,0.00012901,2]
[347098655,1735497040137,-500.0,0.00012901,2]
[347098656,1735497040146,-500.0,0.00012901,2]
[347098657,1735497040156,-500.0,0.00012901,2]
[347098658,1735497040165,-347.32,0.00012901,2]
[347098659,1735497040174,-500.0,0.00012901,2]
[347098660,1735497040183,-500.0,0.00012901,2]
[347098661,1735497040193,-500.0,0.00012901,2]
[347098662,1735497040203,-256.49,0.00012901,2]
[347098663,1735497040212,-500.0,0.00012901,2]
[347098664,1735497040222,-574.36,0.00012901,2]
[347098665,1735497040231,-500.0,0.00012901,2]
[347098666,1735497040241,-530.35,0.00012901,2]
[347098667,1735497040250,-206.84,0.00012901,2]
[347098668,1735497040260,-300.2,0.00012901,2]
[347098669,1735497040272,-500.0,0.00012901,2]
[347098671,1735497040282,-500.0,0.00012901,2]
[347098672,1735497040293,-500.0,0.00012901,2]
[347098673,1735497040303,-500.0,0.00012901,2]
[347098674,1735497040313,-500.0,0.00012901,2]
[347098675,1735497040323,-268.24,0.00012901,2]
[347098676,1735497040332,-500.0,0.00012901,2]
[347098677,1735497040342,-565.83,0.00012901,2]
[347098678,1735497040351,-377.85,0.00012901,2]
[347098679,1735497040361,-500.0,0.00012901,2]
[347098681,1735497040371,-500.0,0.00012901,2]
[347098683,1735497040380,-500.0,0.00012901,2]
[347098685,1735497040390,-500.0,0.00012901,2]
[347098686,1735497040399,-584.28,0.00012901,2]
[347098687,1735497040408,-500.0,0.00012901,2]
[347098688,1735497040417,-518.41,0.00012901,2]
[347098689,1735497040426,-519.09,0.00012901,2]
[347098690,1735497040436,-500.0,0.00012902,2]
[347098691,1735497040445,-512.7,0.00012902,2]
[347098692,1735497040454,-500.0,0.00012902,2]
[347098693,1735497040464,-170.01,0.00012902,2]
[347098694,1735497040474,-500.0,0.00012902,2]
[347098695,1735497040483,-231.08,0.00012902,2]
[347098696,1735497040492,-256.45,0.00012902,2]
[347098697,1735497040501,-500.0,0.00012902,2]
[347098698,1735497040511,-245.57,0.00012902,2]
[347098699,1735497040520,-645.82,0.00012902,2]
[347098700,1735497040530,-500.0,0.00012902,2]
[347098701,1735497040540,-500.0,0.00012902,2]
[347098702,1735497040549,-500.0,0.00012902,2]
[347098703,1735497040558,-1355.83,0.00012902,2]
[347098704,1735497040568,-635.86,0.00012902,2]
[347098705,1735497040577,-500.0,0.00012902,2]
[347098706,1735497040587,-992.4,0.00012902,2]
[347098707,1735497040596,-2255.77,0.00012902,2]
[347098708,1735497040606,-153.8,0.00012946,2]
[347098709,1735497040615,-775.91,0.00012946,2]
[347098710,1735497040624,-500.0,0.00012946,2]
[347098711,1735497040633,-500.0,0.00012946,2]
[347098712,1735497040643,-500.0,0.00012946,2]
[347098713,1735497040652,-679.19,0.00012946,2]
[347098714,1735497040661,-212.15,0.00012946,2]
[347098715,1735497040670,-500.0,0.00012946,2]
[347098716,1735497040681,-500.0,0.00012946,2]
[347098717,1735497040690,-293.8,0.00012946,2]
[347098718,1735497040699,-500.0,0.00012946,2]
[347098719,1735497040709,-305.24,0.00012946,2]
[347098720,1735497040719,-3537.28,0.00012946,2]
[347098721,1735497040729,-500.0,0.00012946,2]
[347098722,1735497040739,-500.0,0.00012946,2]
[347098723,1735497040748,-500.0,0.00013068,2]
[347098724,1735497040757,-600.0,0.00013068,2]
[347098725,1735497040767,-55555.0,0.00013074,2]
[347098726,1735497040776,-5000.0,0.00013074,2]
[347098727,1735497040786,-332.77,0.00013172,2]
[347098728,1735497040795,-500.0,0.00013173,2]
[347098729,1735497040804,-500.0,0.00013173,2]
[347098730,1735497040813,-644.37,0.00013174,2]
[347098731,1735497040822,-500.0,0.00013174,2]
[347098732,1735497040831,-500.0,0.00013174,2]
[347098733,1735497040840,-500.0,0.00013174,2]
[347098734,1735497040849,-500.0,0.00013174,2]
[347098735,1735497040858,-500.0,0.00013174,2]
[347098736,1735497040867,-500.0,0.00013174,2]
[347098737,1735497040877,-225.28221356,0.00013174,2]
[347098738,1735497040886,-500.0,0.00013174,2]
[347098739,1735497040895,-500.0,0.00013174,2]
[347098740,1735497040904,-500.0,0.00013174,2]
[347098741,1735497040915,-500.0,0.00013174,2]
[347098742,1735497040926,-500.0,0.00013174,2]
[347098743,1735497040935,-500.0,0.00013174,2]
[347098744,1735497040944,-500.0,0.00013174,2]
[347098745,1735497040954,-517.36,0.00013174,2]
[347098746,1735497040963,-500.0,0.00013174,2]
[347098747,1735497040972,-500.0,0.00013174,2]
[347098748,1735497040980,-500.0,0.00013174,2]
[347098749,1735497040989,-500.0,0.00013174,2]